fUST/lending_fUST_20250204
["ID","MTS","AMOUNT","RATE_DAILY","PERIOD"]
[351575479,1738633840000,-501.5156817,0.00016438,2]
[351575480,1738633840013,-504.55858245,0.00016438,2]
[351575481,1738633840022,-500.0,0.00016438,2]
[351575482,1738633840032,-500.0,0.00016438,2]
[351575483,1738633840041,-507.40945744,0.00016438,2]
[351575484,1738633840051,-505.08042127,0.00016438,2]
[351575485,1738633840060,-501.88835224,0.00016438,2]
[351575486,1738633840069,-504.43982776,0.00016438,2]
[351575487,1738633840078,-500.73384987,0.00016438,2]
[351575488,1738633840089,-501.11468039,0.00016438,2]
[351575489,1738633840099,-500.0,0.00016438,2]
[351575490,1738633840108,-502.91911587,0.00016438,2]
[351575491,1738633840118,-500.0,0.00016438,2]
[351575492,1738633840127,-500.82314003,0.00016438,2]
[351575493,1738633840136,-500.0,0.00016438,2]
[351575494,1738633840146,-504.05558787,0.00016438,2]
[351575495,1738633840155,-503.04826942,0.00016438,2]
[351575496,1738633840164,-551.79838753,0.00016438,2]
[351575497,1738633840173,-502.30005123,0.00016438,2]
[351575498,1738633840182,-500.0,0.00016438,2]
[351575499,1738633840192,-500.0,0.00016438,2]
[351575500,1738633840203,-500.0,0.00016438,2]
[351575501,1738633840212,-500.0,0.00016438,2]
[351575502,1738633840221,-522.8906184,0.00016438,2]
[351575503,1738633840230,-504.31917368,0.00016438,2]
[351575504,1738633840248,-500.0,0.00016438,2]
[351575505,1738633840258,-500.0,0.00016438,2]
[351575506,1738633840267,-500.0,0.00016438,2]
[351575507,1738633840276,-500.0,0.00016438,2]
[351575508,1738633840286,-500.0,0.00016438,2]
[351575509,1738633840295,-483.98772799,0.00016438,2]
[351575510,1738633840304,-500.0,0.00016438,2]
[351575511,1738633840313,-1003.6644912,0.00016438,2]
[351575512,1738633840322,-502.82949216,0.00016438,2]
[351575513,1738633840331,-500.0,0.00016438,2]
[351575514,1738633840340,-500.0,0.00016438,2]
[351575515,1738633840349,-500.0,0.00016438,2]
[351575516,1738633840359,-502.22942765,0.00016438,2]
[351575517,1738633840368,-502.33191696,0.00016438,2]
[351575518,1738633840377,-500.0,0.00016438,2]
[351575519,1738633840388,-500.0,0.00016438,2]
[351575520,1738633840397,-500.0,0.00016438,2]
[351575521,1738633840407,-500.0,0.00016438,2]
[351575522,1738633840416,-500.96962921,0.00016438,2]
[351575523,1738633840425,-500.0,0.00016438,2]
[351575524,1738633840434,-500.0,0.00016438,2]
[351575525,1738633840444,-521.63015248,0.00016438,2]
[351575526,1738633840453,-511.30415397,0.00016438,2]
[351575527,1738633840462,-501.97579265,0.00016438,2]
[351575528,1738633840471,-500.0,0.00016438,2]
[351575529,1738633840481,-500.0,0.00016438,2]
[351575530,1738633840489,-500.0,0.00016438,2]
[351575531,1738633840499,-500.0,0.00016438,2]
[351575532,1738633840509,-497.31813467,0.00016438,2]
[351575533,1738633840518,-500.0,0.00016438,2]
[351575534,1738633840527,-501.24393507,0.00016438,2]
[351575535,1738633840537,-501.91412635,0.00016438,2]
[351575536,1738633840546,-500.0,0.00016438,2]
[351575537,1738633840556,-500.0,0.00016438,2]
[351575538,1738633840565,-625.86,0.00016438,2]
[351575539,1738633840574,-500.0,0.00016438,2]
[351575540,1738633840584,-503.69286993,0.00016438,2]
[351575541,1738633840593,-501.27733311,0.00016438,2]
[351575542,1738633840603,-500.0,0.00016438,2]
[351575543,1738633840612,-501.04699692,0.00016438,2]
[351575544,1738633840622,-502.25343811,0.00016438,2]
[351575545,1738633840631,-501.11369269,0.00016438,2]
[351575546,1738633840640,-501.0632417,0.00016438,2]
[351575547,1738633840650,-323.1313096,0.00016438,2]
[351575548,1738633840659,-503.90865679,0.00016438,2]
[351575549,1738633840668,-503.28788525,0.00016438,2]
[351575550,1738633840678,-500.0,0.00016438,2]
[351575551,1738633840687,-500.0,0.00016438,2]
[351575552,1738633840697,-501.75077943,0.00016438,2]
[351575553,1738633840708,-500.0,0.00016438,2]
[351575554,1738633840718,-501.30661669,0.00016438,2]
[351575555,1738633840728,-501.77011827,0.00016438,2]
[351575556,1738633840737,-500.0,0.00016438,2]
[351575557,1738633840748,-500.0,0.00016438,2]
[351575558,1738633840757,-501.04468729,0.00016438,2]
[351575559,1738633840767,-597.30409777,0.00016438,2]
[351575560,1738633840776,-500.0,0.00016438,2]
[351575561,1738633840785,-375.66727738,0.00016438,2]
[351575562,1738633840795,-500.0,0.00016438,2]
[351575563,1738633840804,-500.0,0.00016438,2]
[351575564,1738633840813,-500.0,0.00016438,2]
[351575565,1738633840823,-500.0,0.00016438,2]
[351575566,1738633840832,-500.0,0.00016438,2]
[351575567,1738633840842,-500.0,0.00016438,2]
[351575568,1738633840851,-500.0,0.00016438,2]
[351575569,1738633840860,-485.76513111,0.00016438,2]
[351575570,1738633840869,-500.0,0.00016438,2]
[351575571,1738633840879,-500.0,0.00016438,2]
[351575572,1738633840888,-501.7519348,0.00016438,2]
[351575573,1738633840898,-501.47769373,0.00016438,2]
[351575574,1738633840907,-500.0,0.00016438,2]
[351575575,1738633840917,-500.0,0.00016438,2]
[351575576,1738633840927,-500.0,0.00016438,2]
[351575577,1738633840936,-500.0,0.00016438,2]
[351575578,1738633840946,-500.0,0.00016438,2]
[351575579,1738633840956,-500.0,0.00016438,2]
[351575580,1738633840965,-500.0,0.00016438,2]
[351575581,1738633840974,-502.16452158,0.00016438,2]
[351575582,1738633840984,-500.5901142,0.00016438,2]
[351575583,1738633840995,-500.0,0.00016438,2]
[351575584,1738633841005,-500.0,0.00016438,2]
[351575585,1738633841017,-501.70899205,0.00016438,2]
[351575586,1738633841027,-500.0,0.00016438,2]
[351575587,1738633841037,-501.41942651,0.00016438,2]
[351575588,1738633841046,-500.0,0.00016438,2]
[351575589,1738633841056,-500.0,0.00016438,2]
[351575590,1738633841065,-500.0,0.00016438,2]
[351575591,1738633841076,-500.0,0.00016438,2]
[351575592,1738633841087,-500.0,0.00016438,2]
[351575593,1738633841097,-500.0,0.00016438,2]
[351575594,1738633841107,-501.30465687,0.00016438,2]
[351575595,1738633841116,-503.66013878,0.00016438,2]
[351575596,1738633841125,-168.14689674,0.00016438,2]
[351575597,1738633841134,-500.0,0.00016438,2]
[351575598,1738633841143,-501.82307059,0.00016438,2]
[351575599,1738633841153,-500.0,0.00016438,2]
[351575600,1738633841162,-503.99008327,0.00016438,2]
[351575601,1738633841172,-500.0,0.00016438,2]
[351575602,1738633841181,-500.0,0.00016438,2]
[351575603,1738633841191,-500.0,0.00016438,2]
[351575604,1738633841200,-500.0,0.00016438,2]
[351575605,1738633841209,-500.0,0.00016438,2]
[351575606,1738633841218,-500.0,0.00016438,2]
[351575607,1738633841228,-500.0,0.00016438,2]
[351575608,1738633841237,-500.0,0.00016438,2]
[351575609,1738633841247,-500.0,0.00016438,2]
[351575610,1738633841257,-863.72,0.00016438,2]
[351575611,1738633841266,-500.0,0.00016438,2]
[351575612,1738633841275,-500.0,0.00016438,2]
[351575613,1738633841285,-322.34702438,0.00016438,2]
[351575614,1738633841295,-503.29373664,0.00016438,2]
[351575615,1738633841305,-505.28397399,0.00016438,2]
[351575616,1738633841314,-500.0,0.00016438,2]
[351575617,1738633841323,-517.34,0.00016438,2]
[351575618,1738633841332,-500.0,0.00016438,2]
[351575619,1738633841341,-504.91760769,0.00016438,2]
[351575620,1738633841351,-636.32937855,0.00016438,2]
[351575621,1738633841360,-501.46081142,0.00016438,2]
[351575622,1738633841370,-500.0,0.00016438,2]
[351575623,1738633841379,-501.29816696,0.00016438,2]
[351575624,1738633841388,-500.0,0.00016438,2]
[351575625,1738633841397,-500.0,0.00016438,2]
[351575626,1738633841406,-500.0,0.00016438,2]
[351575627,1738633841416,-500.0,0.00016438,2]
[351575628,1738633841425,-500.0,0.00016438,2]
[351575629,1738633841434,-501.75,0.00016438,2]
[351575630,1738633841444,-501.10415638,0.00016438,2]
[351575631,1738633841453,-500.0,0.00016438,2]
[351575632,1738633841462,-500.0,0.00016438,2]
[351575633,1738633841471,-500.0,0.00016438,2]
[351575634,1738633841480,-367.95302625,0.00016438,2]
[351575635,1738633841489,-500.0,0.00016438,2]
[351575636,1738633841500,-500.0,0.00016438,2]
[351575637,1738633841509,-501.78307913,0.00016438,2]
[351575638,1738633841518,-500.0,0.00016438,2]
[351575639,1738633841527,-344.11727,0.00016438,2]
[351575640,1738633841536,-506.24829497,0.00016438,2]
[351575641,1738633841546,-500.0,0.00016438,2]
[351575642,1738633841555,-500.0,0.00016438,2]
[351575643,1738633841564,-500.0,0.00016438,2]
[351575644,1738633841574,-500.0,0.00016438,2]
[351575645,1738633841583,-500.0,0.00016438,2]
[351575646,1738633841593,-500.0,0.00016438,2]
[351575647,1738633841602,-4739.63,0.00016438,2]
[351575648,1738633841611,-500.0,0.00016438,2]
[351575649,1738633841619,-500.6305741,0.00016438,2]
[351575650,1738633841629,-2416.23,0.00016438,2]
[351575651,1738633841637,-501.23861367,0.00016438,2]
[351575652,1738633841646,-500.0,0.00016438,2]
[351575653,1738633841655,-500.0,0.00016438,2]
[351575654,1738633841665,-500.0,0.00016438,2]
[351575655,1738633841676,-500.0,0.00016438,2]
[351575656,1738633841685,-603.7672409,0.00016438,2]
[351575657,1738633841694,-500.0,0.00016438,2]
[351575658,1738633841704,-500.0,0.00016438,2]
[351575659,1738633841713,-500.0,0.00016438,2]
[351575660,1738633841722,-500.45429758,0.00016438,2]
[351575661,1738633841732,-501.40726772,0.00016438,2]
[351575662,1738633841741,-500.0,0.00016438,2]
[351575663,1738633841752,-502.00719443,0.00016438,2]
[351575664,1738633841762,-501.5234908,0.00016438,2]
[351575665,1738633841771,-500.40684812,0.00016438,2]
[351575666,1738633841780,-500.64022996,0.00016438,2]
[351575667,1738633841789,-501.9095757,0.00016438,2]
[351575668,1738633841799,-500.0,0.00016438,2]
[351575669,1738633841809,-6794.95,0.00016438,2]
[351575670,1738633841818,-500.74241491,0.00016438,2]
[351575671,1738633841828,-500.0,0.00016438,2]
[351575672,1738633841838,-503.84890369,0.00016438,2]
[351575673,1738633841848,-857.86,0.00016438,2]
[351575674,1738633841857,-500.0,0.00016438,2]
[351575675,1738633841867,-500.0,0.00016438,2]
[351575676,1738633841877,-503.46497966,0.00016438,2]
[351575677,1738633841886,-502.25634418,0.00016438,2]
[351575678,1738633841896,-502.11044704,0.00016438,2]
[351575679,1738633841905,-2192.12,0.00016438,2]
[351575680,1738633841915,-502.14726153,0.00016438,2]
[351575681,1738633841925,-500.0,0.00016438,2]
[351575682,1738633841934,-501.23594885,0.00016438,2]
[351575683,1738633841944,-502.19662596,0.00016438,2]
[351575684,1738633841953,-1132.63,0.00016438,2]
[351575685,1738633841963,-504.35116367,0.00016438,2]
[351575686,1738633841972,-500.0,0.00016438,2]
[351575687,1738633841982,-500.0,0.00016438,2]
[351575688,1738633841991,-502.43114714,0.00016438,2]
[351575689,1738633842002,-502.58484862,0.00016438,2]
[351575690,1738633842015,-500.0,0.00016438,2]
[351575691,1738633842025,-245.10725896,0.00016438,2]
[351575692,1738633842034,-500.0,0.00016438,2]
[351575693,1738633842044,-501.88579329,0.00016438,2]
[351575694,1738633842055,-506.35464131,0.00016438,2]
[351575695,1738633842065,-1252.0,0.00016438,2]
[351575696,1738633842074,-500.0,0.00016438,2]
[351575697,1738633842083,-500.0,0.00016438,2]
[351575698,1738633842094,-501.56263687,0.00016438,2]
[351575699,1738633842103,-502.21405598,0.00016438,2]
[351575700,1738633842113,-500.0,0.00016438,2]
[351575701,1738633842122,-500.0,0.00016438,2]
[351575702,1738633842132,-502.52034054,0.00016438,2]
[351575703,1738633842141,-503.98004009,0.00016438,2]
[351575704,1738633842150,-505.4418658,0.00016438,2]
[351575705,1738633842160,-500.0,0.00016438,2]
[351575706,1738633842169,-500.66696991,0.00016438,2]
[351575707,1738633842179,-501.96046442,0.00016438,2]
[351575708,1738633842188,-502.10302979,0.00016438,2]
[351575709,1738633842207,-501.62261534,0.00016438,2]
[351575710,1738633842218,-503.19280317,0.00016438,2]
[351575711,1738633842228,-1102.32,0.00016438,2]
[351575712,1738633842238,-419.74968769,0.00016438,2]
[351575713,1738633842247,-2196.75,0.00016438,2]
[351575714,1738633842257,-500.0,0.00016438,2]
[351575715,1738633842267,-500.0,0.00016438,2]
[351575716,1738633842276,-500.0,0.00016438,2]
[351575717,1738633842286,-500.0,0.00016438,2]
[351575718,1738633842296,-820.89,0.00016438,2]
[351575719,1738633842306,-501.24491081,0.00016438,2]
[351575721,1738633842315,-807.38,0.00016438,2]
[351575722,1738633842325,-201.17418829,0.00016438,2]
[351575723,1738633842336,-503.88485712,0.00016438,2]
[351575724,1738633842346,-500.0,0.00016438,2]
[351575725,1738633842355,-504.29280707,0.00016438,2]
[351575726,1738633842365,-505.08846675,0.00016438,2]
[351575727,1738633842375,-506.24850097,0.00016438,2]
[351575728,1738633842385,-500.0,0.00016438,2]
[351575730,1738633842395,-500.0,0.00016438,2]
[351575732,1738633842404,-500.0,0.00016438,2]
[351575734,1738633842414,-500.0,0.00016438,2]
[351575735,1738633842424,-500.0,0.00016438,2]
[351575736,1738633842433,-507.23232789,0.00016438,2]
[351575737,1738633842442,-500.0,0.00016438,2]
[351575738,1738633842452,-502.11524931,0.00016438,2]
[351575754,1738633842612,-500.0,0.00016438,2]
[351575755,1738633842621,-207.32760671,0.00016438,2]
[351575756,1738633842631,-500.0,0.00016438,2]
[351575757,1738633842640,-1245.91,0.00016438,2]
[351575759,1738633842649,-501.3111807,0.00016438,2]
[351575761,1738633842659,-500.0,0.00016438,2]
[351575763,1738633842668,-500.0,0.00016438,2]
[351575765,1738633842677,-682.28,0.00016438,2]
[351575767,1738633842686,-504.1859635,0.00016438,2]
[351575769,1738633842696,-500.6991177,0.00016438,2]
[351575771,1738633842705,-1205.55,0.00016438,2]
[351575773,1738633842714,-500.0,0.00016438,2]
[351575775,1738633842723,-500.0,0.00016438,2]
[351575777,1738633842732,-500.0,0.00016438,2]
[351575779,1738633842742,-500.0,0.00016438,2]
[351575781,1738633842755,-500.0,0.00016438,2]
[351575783,1738633842764,-502.22097569,0.00016438,2]
[351575785,1738633842774,-500.34927661,0.00016438,2]
[351575787,1738633842784,-2681.69,0.00016438,2]
[351575788,1738633842794,-2681.69,0.00016438,2]
[351575789,1738633842803,-2681.69,0.00016438,2]
[351575790,1738633842812,-500.0,0.00016438,2]
[351575791,1738633842822,-2681.69,0.00016438,2]
[351575792,1738633842831,-1826.88,0.00016438,2]
[351575793,1738633842841,-2681.69,0.00016438,2]
[351575794,1738633842851,-2681.69,0.00016438,2]
[351575795,1738633842860,-2681.69,0.00016438,2]
[351575796,1738633842869,-2681.69,0.00016438,2]
[351575797,1738633842878,-2681.69,0.00016438,2]
[351575798,1738633842887,-2681.69,0.00016438,2]
[351575799,1738633842897,-1865.26,0.00016438,2]
[351575800,1738633842906,-500.0,0.00016438,2]
[351575801,1738633842915,-2681.69,0.00016438,2]
[351575802,1738633842924,-2681.69,0.00016438,2]
[351575803,1738633842934,-2681.69,0.00016438,2]
[351575804,1738633842943,-2681.69,0.00016438,2]
[351575805,1738633842952,-2681.69,0.00016438,2]
[351575806,1738633842962,-2681.69,0.00016438,2]
[351575808,1738633842971,-2681.69,0.00016438,2]
[351575809,1738633842980,-17509.67,0.00016438,2]
[351575810,1738633842990,-500.0,0.00016438,2]
[351575811,1738633843005,-500.0,0.00016438,2]
[351575812,1738633843018,-3986.74,0.00016438,2]
[351575813,1738633843028,-539.65911635,0.00016438,2]
[351575814,1738633843038,-1009.24792971,0.00016438,7]
[351575815,1738633843049,-500.0,0.00016438,2]
[351575816,1738633843059,-500.99895511,0.00016438,2]
[351575817,1738633843068,-521.61863909,0.00016438,2]
[351575818,1738633843078,-1094.05,0.00016438,2]
[351575819,1738633843088,-500.0,0.00016438,2]
[351575820,1738633843097,-501.73786384,0.00016438,2]
[351575821,1738633843107,-1240.34,0.00016438,2]
[351575822,1738633843116,-494.22370413,0.00016438,2]
[351575823,1738633843126,-500.17270488,0.00016438,2]
[351575824,1738633843136,-500.0,0.00016438,2]
[351575825,1738633843146,-7598.56,0.00016438,2]
[351575826,1738633843155,-500.0,0.00016438,2]
[351575827,1738633843164,-505.96811278,0.00016438,2]
[351575828,1738633843175,-500.0,0.00016438,2]
[351575829,1738633843186,-500.0,0.00016438,2]
[351575830,1738633843195,-500.0,0.00016438,2]
[351575831,1738633843204,-502.24804162,0.00016438,2]
[351575832,1738633843214,-500.0,0.00016438,2]
[351575833,1738633843223,-982.88,0.00016438,2]
[351575834,1738633843233,-500.0,0.00016438,2]
[351575835,1738633843242,-502.44100429,0.00016438,2]
[351575836,1738633843253,-404.03313955,0.00016438,2]
[351575837,1738633843262,-504.91961213,0.00016438,2]
[351575838,1738633843272,-1725.22,0.00016438,2]
[351575839,1738633843281,-500.0,0.00016438,2]
[351575840,1738633843290,-502.22377594,0.00016438,2]
[351575841,1738633843300,-500.0,0.00016438,2]
[351575842,1738633843309,-500.0,0.00016438,2]
[351575843,1738633843318,-713.78,0.00016438,2]
[351575844,1738633843328,-500.0,0.00016438,2]
[351575845,1738633843337,-626.12644623,0.00016438,2]
[351575846,1738633843346,-500.0,0.00016438,2]
[351575847,1738633843355,-500.0,0.00016438,2]
[351575848,1738633843366,-1087.4,0.00016438,2]
[351575849,1738633843375,-1108.45,0.00016438,2]
[351575850,1738633843385,-502.1134104,0.00016438,2]
[351575851,1738633843393,-500.0,0.00016438,2]
[351575852,1738633843401,-500.0,0.00016438,2]
[351575853,1738633843410,-500.0,0.00016438,2]
[351575854,1738633843419,-500.0,0.00016438,2]
[351575855,1738633843428,-500.0,0.00016438,2]
[351575856,1738633843438,-500.0,0.00016438,2]
[351575857,1738633843447,-905.74,0.00016438,2]
[351575858,1738633843457,-500.0,0.00016438,2]
[351575859,1738633843466,-500.0,0.00016438,2]
[351575860,1738633843476,-500.0,0.00016438,2]
[351575861,1738633843485,-500.0,0.00016438,2]
[351575862,1738633843495,-500.0,0.00016438,2]
[351575863,1738633843506,-500.0,0.00016438,2]
[351575864,1738633843515,-500.0,0.00016438,2]
[351575865,1738633843525,-502.84952324,0.00016438,2]
[351575866,1738633843535,-500.0,0.00016438,2]
[351575867,1738633843544,-500.0,0.00016438,2]
[351575868,1738633843554,-500.0,0.00016438,2]
[351575869,1738633843563,-500.0,0.00016438,2]
[351575870,1738633843574,-501.94375795,0.00016438,2]
[351575871,1738633843584,-6955.11,0.00016438,2]
[351575872,1738633843595,-6955.11,0.00016438,2]
[351575873,1738633843604,-6955.11,0.00016438,2]
[351575874,1738633843614,-6955.11,0.00016438,2]
[351575875,1738633843625,-6955.11,0.00016438,2]
[351575876,1738633843635,-788.91,0.00016438,2]
[351575877,1738633843645,-6955.11,0.00016438,2]
[351575878,1738633843655,-6955.11,0.00016438,2]
[351575879,1738633843665,-6955.11,0.00016438,2]
[351575880,1738633843674,-6955.11,0.00016438,2]
[351575881,1738633843683,-6955.11,0.00016438,2]
[351575882,1738633843693,-6955.11,0.00016438,2]
[351575883,1738633843703,-6955.11,0.00016438,2]
[351575884,1738633843715,-6955.11,0.00016438,2]
[351575885,1738633843725,-2576.35,0.00016438,2]
[351575886,1738633843734,-6955.11,0.00016438,2]
[351575887,1738633843743,-6955.11,0.00016438,2]
[351575888,1738633843755,-6955.11,0.00016438,2]
[351575889,1738633843764,-500.30087343,0.00016438,2]
[351575890,1738633843774,-504.63841964,0.00016438,2]
[351575891,1738633843783,-6955.11,0.00016438,2]
[351575892,1738633843793,-6955.11,0.00016438,2]
[351575893,1738633843802,-6955.11,0.00016438,2]
[351575894,1738633843811,-6955.11,0.00016438,2]
[351575895,1738633843821,-6955.11,0.00016438,2]
[351575896,1738633843830,-6955.11,0.00016438,2]
[351575897,1738633843840,-6955.11,0.00016438,2]
[351575898,1738633843849,-6955.20513496,0.00016438,2]
[351575899,1738633843859,-500.0,0.00016438,2]
[351575900,1738633843868,-1033.44,0.00016438,2]
[351575901,1738633843877,-1307.37,0.00016438,2]
[351575902,1738633843887,-393.32161484,0.00016438,2]
[351575903,1738633843896,-503.90134785,0.00016438,2]
[351575904,1738633843906,-501.16150062,0.00016438,2]
[351575905,1738633843916,-500.0,0.00016438,2]
[351575906,1738633843926,-500.0,0.00016438,2]
[351575907,1738633843936,-502.79603949,0.00016438,2]
[351575908,1738633843945,-500.0,0.00016438,2]
[351575909,1738633843955,-500.0,0.00016438,2]
[351575910,1738633843964,-500.0,0.00016438,2]
[351575911,1738633843974,-406.28776364,0.00016438,2]
[351575938,1738633846027,-93.71223636,0.00016438,2]
[351575939,1738633846036,-500.0,0.00016438,2]
[351575940,1738633846047,-2681.69,0.00016444,2]
[351575941,1738633846057,-151.0,0.00016445,2]
[351575942,1738633846066,-500.0,0.00016445,2]
[351575943,1738633846076,-153.0,0.00016488,2]
[351575944,1738633846085,-153.0,0.00016488,2]
[351575945,1738633846094,-153.0,0.00016488,2]
[351575946,1738633846103,-153.0,0.00016488,2]
[351575947,1738633846112,-153.0,0.00016488,2]
[351575949,1738633846123,-153.0,0.00016488,2]
[351575950,1738633846132,-153.0,0.00016488,2]
[351575953,1738633846143,-153.0,0.00016488,2]
[351575955,1738633846152,-153.6782278,0.000165,2]
[351575956,1738633846161,-309.0613172,0.000165,2]
[351575958,1738633846171,-153.0,0.00016512,2]
[351575959,1738633846181,-245.04596459,0.00016561,2]
[351575960,1738633846191,-48.01671805,0.00016572,2]
[351575961,1738633846202,-2183.58619756,0.00016572,2]
[351575962,1738634022460,245.965897,0.00013973,2]
[351575977,1738634884827,252.76577,0.00013973,2]
[351575997,1738635032142,-537.04182935,0.00015972,2]
[351575998,1738635032298,-162.95817065,0.00015972,2]
[351575999,1738635032308,-6667.7530619,0.0001623,2]
[351576000,1738635032318,-336.19476777,0.00016338,2]
[351576001,1738635032327,-300.0,0.00016417,2]
[351576002,1738635032337,-60581.10095304,0.00016418,2]
[351576004,1738635032347,-689.26442241,0.00016437,2]
[351576005,1738635032356,-186.61359008,0.00016437,2]
[351576006,1738635032365,-543.58,0.00016437,2]
[351576007,1738635032375,-253.63694842,0.00016438,2]
[351576008,1738635032384,-151.0,0.00016438,2]
[351576009,1738635032394,-151.0,0.00016438,2]
[351576010,1738635032403,-501.42280111,0.00016438,2]
[351576011,1738635032412,-383.02853692,0.00016438,2]
[351576012,1738635032421,-504.77411914,0.00016438,2]
[351576013,1738635032431,-500.0,0.00016438,2]
[351576014,1738635032442,-500.0,0.00016438,2]
[351576015,1738635032452,-501.10727482,0.00016438,2]
[351576016,1738635032462,-502.87430555,0.00016438,2]
[351576017,1738635032472,-500.0,0.00016438,2]
[351576018,1738635032482,-500.0,0.00016438,2]
[351576019,1738635032493,-500.0,0.00016438,2]
[351576020,1738635032502,-371.73145039,0.00016438,2]
[351576021,1738635032512,-500.0,0.00016438,2]
[351576022,1738635032523,-500.95302476,0.00016438,2]
[351576023,1738635032532,-500.0,0.00016438,2]
[351576024,1738635032542,-500.81746753,0.00016438,2]
[351576025,1738635032551,-500.0,0.00016438,2]
[351576026,1738635032560,-500.0,0.00016438,2]
[351576027,1738635032569,-440.43796958,0.00016438,2]
[351576028,1738635032579,-500.0,0.00016438,2]
[351576029,1738635032588,-500.86749186,0.00016438,2]
[351576030,1738635032597,-500.66643293,0.00016438,2]
[351576031,1738635032606,-500.0,0.00016438,2]
[351576032,1738635032615,-500.0,0.00016438,2]
[351576033,1738635032624,-557.79395311,0.00016438,2]
[351576034,1738635032633,-500.0,0.00016438,2]
[351576035,1738635032643,-500.0,0.00016438,2]
[351576036,1738635032652,-648.38504466,0.00016438,2]
[351576037,1738635032661,-500.0,0.00016438,2]
[351576038,1738635032670,-500.0,0.00016438,2]
[351576039,1738635032680,-500.0,0.00016438,2]
[351576040,1738635032690,-500.0,0.00016438,2]
[351576041,1738635032699,-503.10418245,0.00016438,2]
[351576042,1738635032708,-501.18437889,0.00016438,2]
[351576043,1738635032717,-501.93987176,0.00016438,2]
[351576044,1738635032726,-501.67349758,0.00016438,2]
[351576045,1738635032736,-500.0,0.00016438,2]
[351576046,1738635032745,-501.4865438,0.00016438,2]
[351576047,1738635032756,-501.35355599,0.00016438,2]
[351576048,1738635032766,-502.32218122,0.00016438,2]
[351576049,1738635032776,-501.35435369,0.00016438,2]
[351576050,1738635032786,-500.37701116,0.00016438,2]
[351576051,1738635032796,-500.0,0.00016438,2]
[351576052,1738635032806,-500.0,0.00016438,2]
[351576053,1738635032817,-503.02410483,0.00016438,2]
[351576054,1738635032827,-500.0,0.00016438,2]
[351576055,1738635032841,-500.0,0.00016438,2]
[351576056,1738635032850,-500.0,0.00016438,2]
[351576057,1738635032859,-500.0,0.00016438,2]
[351576058,1738635032868,-502.44387933,0.00016438,2]
[351576059,1738635032878,-500.95938229,0.00016438,2]
[351576060,1738635032887,-500.0,0.00016438,2]
[351576061,1738635032896,-500.0,0.00016438,2]
[351576062,1738635032906,-500.0,0.00016438,2]
[351576063,1738635032915,-501.69670012,0.00016438,2]
[351576064,1738635032924,-501.9755409,0.00016438,2]
[351576065,1738635032934,-500.71035067,0.00016438,2]
[351576066,1738635032944,-500.0,0.00016438,2]
[351576067,1738635032954,-501.28730762,0.00016438,2]
[351576068,1738635032963,-500.0,0.00016438,2]
[351576069,1738635032973,-500.28298216,0.00016438,2]
[351576070,1738635032983,-500.0,0.00016438,2]
[351576071,1738635032994,-500.0,0.00016438,2]
[351576072,1738635033003,-500.0,0.00016438,2]
[351576073,1738635033012,-501.04513379,0.00016438,2]
[351576074,1738635033022,-500.0,0.00016438,2]
[351576075,1738635033032,-501.05083343,0.00016438,2]
[351576076,1738635033041,-500.0,0.00016438,2]
[351576077,1738635033051,-501.50525665,0.00016438,2]
[351576078,1738635033060,-509.07138563,0.00016438,2]